bitfinex/quotes_BTCUSD_20250623
["timestamp","ask_amount","ask_price","bid_price","bid_amount"]
[1750684244716,6.94221168,101640.0,101630.0,0.00013654]
[1750684245159,6.94221168,101640.0,101590.0,0.01454085]
[1750684245160,5.05,101630.0,101590.0,0.01454085]
[1750684245385,0.49107221,101610.0,101600.0,0.0626]
[1750684246755,0.49107221,101610.0,101600.0,0.0686]
[1750684247861,0.34,101620.0,101600.0,0.0686]
[1750684248077,0.49107221,101610.0,101600.0,0.0686]
[1750684248296,5.05,101610.0,101600.0,0.0726]
[1750684248755,5.05,101610.0,101600.0,0.0686]
[1750684249288,5.05,101610.0,101600.0,0.0656]
[1750684249514,5.54107221,101610.0,101600.0,0.0656]
[1750684249738,0.49107221,101610.0,101600.0,0.0656]
[1750684250203,5.88107221,101610.0,101600.0,0.007]
[1750684250429,5.88107221,101610.0,101600.0,0.003]
[1750684250916,6.00496899,101610.0,101600.0,0.004]
[1750684251392,6.00496899,101610.0,101600.0,0.008]
[1750684251859,6.00496899,101610.0,101600.0,0.004]
[1750684252093,5.51389678,101610.0,101600.0,0.004]
[1750684252323,5.9046696,101610.0,101600.0,0.0661]
[1750684252542,5.9046696,101610.0,101600.0,0.0671]
[1750684252770,5.9046696,101610.0,101600.0,0.0661]
[1750684253029,5.9056696,101610.0,101600.0,0.0651]
[1750684253254,5.9066696,101610.0,101600.0,0.0651]
[1750684253925,5.41559739,101610.0,101600.0,0.0651]
[1750684254190,5.9066696,101610.0,101600.0,0.0651]
[1750684254700,5.88307221,101610.0,101600.0,0.0651]
[1750684255826,5.392,101610.0,101600.0,0.0651]
[1750684256051,5.88307221,101610.0,101600.0,0.0651]
[1750684256769,5.54307221,101610.0,101600.0,0.0651]
[1750684258088,5.54307221,101610.0,101600.0,0.0321]
[1750684258309,5.83817176,101610.0,101600.0,0.0321]
[1750684259175,6.17817176,101610.0,101600.0,0.0321]
[1750684259617,6.20777076,101610.0,101600.0,0.0321]
[1750684261391,6.20777076,101610.0,101600.0,0.0629]
[1750684262111,5.05,101600.0,101590.0,0.06169078]
[1750684262331,0.39308588,101600.0,101590.0,0.06169078]
[1750684263030,5.44308588,101600.0,101590.0,0.06169078]
[1750684263261,5.78308588,101600.0,101590.0,9.078e-05]
[1750684263687,5.78308588,101600.0,101590.0,0.00109078]
[1750684264138,5.88338527,101600.0,101590.0,0.00109078]
[1750684264619,6.05194527,101600.0,101590.0,0.00209078]
[1750684264834,6.08394527,101600.0,101590.0,0.00209078]
[1750684265264,6.2403665,101600.0,101590.0,0.00209078]
[1750684265466,6.95566774,101600.0,101590.0,0.00209078]
[1750684265672,7.02408314,101600.0,101590.0,0.00209078]
[1750684266096,6.82723275,101600.0,101590.0,0.00209078]
[1750684266513,7.02408314,101600.0,101590.0,9.078e-05]
[1750684266724,7.07751417,101600.0,101590.0,9.078e-05]
[1750684266943,6.87082136,101600.0,101590.0,9.078e-05]
[1750684267159,6.00512351,101600.0,101590.0,9.078e-05]
[1750684267369,6.15158811,101600.0,101590.0,9.078e-05]
[1750684267581,6.15466811,101600.0,101590.0,9.078e-05]
[1750684267794,6.15566811,101600.0,101590.0,9.078e-05]
[1750684268234,6.74475088,101600.0,101590.0,9.078e-05]
[1750684268451,6.46080652,101600.0,101590.0,9.078e-05]
[1750684268656,6.47264884,101600.0,101590.0,9.078e-05]
[1750684269075,6.45296439,101600.0,101590.0,9.078e-05]
[1750684269298,7.06258608,101600.0,101590.0,9.078e-05]
[1750684269509,7.11215183,101600.0,101590.0,9.078e-05]
[1750684269928,7.10230977,101600.0,101590.0,9.078e-05]
[1750684270594,6.28308588,101570.0,101560.0,0.0374]
[1750684270803,5.78308588,101570.0,101560.0,0.03744618]
[1750684271228,5.78308588,101570.0,101560.0,0.00414618]
[1750684271430,5.86326711,101570.0,101560.0,0.00414618]
[1750684271929,5.81269688,101570.0,101560.0,0.00414618]
[1750684272150,5.91299627,101570.0,101560.0,0.01114618]
[1750684272814,5.91299627,101570.0,101560.0,0.00714618]
[1750684273028,5.419611,101570.0,101560.0,0.06474618]
[1750684273260,5.81269688,101570.0,101560.0,0.06474618]
[1750684274354,5.62470688,101570.0,101560.0,0.06474618]
[1750684275026,5.6629763,101570.0,101560.0,0.06474618]
[1750684279441,5.6630163,101570.0,101560.0,0.06474618]
[1750684280352,5.6630163,101570.0,101560.0,0.06674618]
[1750684280786,5.6630163,101570.0,101560.0,0.06774618]
[1750684281260,5.6630163,101570.0,101560.0,0.06674618]
[1750684281964,5.6630163,101570.0,101560.0,0.06474618]
[1750684284457,5.26993042,101570.0,101560.0,0.06474618]
[1750684284666,0.7713953,101570.0,101560.0,0.06474618]
[1750684285157,0.37830942,101570.0,101560.0,0.06474618]
[1750684285384,0.7713953,101570.0,101560.0,0.06474618]
[1750684286030,0.7713953,101570.0,101560.0,0.06674618]
[1750684286927,0.7713953,101570.0,101560.0,0.03774618]
[1750684286928,0.87169469,101570.0,101560.0,0.03774618]
[1750684287162,5.83400408,101570.0,101560.0,0.03774618]
[1750684287402,5.7572601,101570.0,101560.0,0.03774618]
[1750684288106,5.7572601,101570.0,101560.0,0.07024618]
[1750684290320,5.7572601,101570.0,101560.0,0.03774618]
[1750684291504,5.7572601,101570.0,101560.0,0.00714618]
[1750684291985,5.84539482,101570.0,101560.0,0.00714618]
[1750684292924,5.87488343,101570.0,101560.0,0.00714618]
[1750684293151,5.78674871,101570.0,101560.0,0.00714618]
[1750684293827,5.95594871,101570.0,101560.0,0.00714618]
[1750684294567,6.40623459,101570.0,101560.0,0.00704618]
[1750684294811,6.49267767,101570.0,101560.0,0.00344618]
[1750684295031,6.58313222,101570.0,101560.0,0.00344618]
[1750684295259,6.57328767,101570.0,101560.0,0.00344618]
[1750684295470,6.19004653,101570.0,101560.0,0.00344618]
[1750684295697,6.16012746,101570.0,101560.0,0.00344618]
[1750684295919,6.14291482,101570.0,101560.0,0.00144618]
[1750684296132,6.14591482,101570.0,101560.0,0.00144618]
[1750684296348,6.15575985,101570.0,101560.0,0.00144618]
[1750684296554,6.59884573,101570.0,101560.0,0.00044618]
[1750684296761,6.60869096,101570.0,101560.0,0.00044618]
[1750684296984,6.61069096,101570.0,101560.0,0.00044618]
[1750684297195,6.80759949,101570.0,101540.0,0.0642]
[1750684297401,4.86201,101550.0,101540.0,0.06466268]
[1750684297612,5.94111656,101550.0,101540.0,0.06466268]
[1750684298274,5.77203656,101550.0,101540.0,0.06466268]
[1750684298493,5.54807068,101550.0,101540.0,0.06466268]
[1750684298709,5.54807068,101550.0,101540.0,0.06666268]
[1750684298931,5.94115656,101550.0,101540.0,0.06666268]
[1750684299789,6.04145595,101550.0,101540.0,0.06666268]
[1750684300010,6.04145595,101550.0,101540.0,0.03576268]
[1750684300224,5.94115656,101550.0,101540.0,0.03676268]
[1750684300472,5.94115656,101550.0,101540.0,0.00356268]
[1750684300918,5.94115656,101550.0,101540.0,0.00256268]
[1750684301136,6.31069561,101550.0,101540.0,0.00256268]
[1750684301357,6.410995,101550.0,101540.0,0.00056268]
[1750684302254,6.46078856,101550.0,101540.0,0.00056268]
[1750684302694,6.47063573,101550.0,101540.0,0.00056268]
[1750684302912,6.7027304,101550.0,101540.0,0.00056268]
[1750684303148,6.54504874,101550.0,101540.0,0.00056268]
[1750684303368,6.78214869,101550.0,101540.0,0.00056268]
[1750684303591,6.80260964,101550.0,101540.0,0.00056268]
[1750684303819,7.24282549,101550.0,101540.0,1e-08]
[1750684304737,6.00787677,101540.0,101530.0,0.0256009]
[1750684304980,6.91595607,101540.0,101530.0,0.02573968]
[1750684305472,6.92580411,101540.0,101530.0,0.02573968]
[1750684305753,6.96460832,101540.0,101530.0,0.02573968]
[1750684305974,6.95476077,101540.0,101530.0,0.02573968]
[1750684306461,6.53637489,101540.0,101530.0,0.02573968]
[1750684306710,6.52652743,101540.0,101530.0,0.02573968]
[1750684307054,6.53944743,101540.0,101530.0,0.02573968]
[1750684307246,6.32612743,101540.0,101530.0,0.08853968]
[1750684307476,6.54148743,101540.0,101530.0,0.08853968]
[1750684307689,6.55133489,101540.0,101530.0,0.05793968]
[1750684307916,6.59046592,101540.0,101530.0,0.02573968]
[1750684308136,6.58061827,101540.0,101530.0,0.02573968]
[1750684308362,6.59346592,101540.0,101530.0,0.02573968]
[1750684308577,6.9865518,101540.0,101530.0,0.02573968]
[1750684308834,6.99639965,101540.0,101530.0,0.02573968]
[1750684309999,7.02829965,101540.0,101530.0,0.02573968]
[1750684310436,7.03814769,101540.0,101530.0,0.02573968]
[1750684310657,7.32458763,101540.0,101530.0,0.02573968]
[1750684310923,7.14307269,101540.0,101530.0,0.02573968]
[1750684311132,7.20292092,101540.0,101530.0,0.02573968]
[1750684311470,7.38019252,101540.0,101530.0,0.02573968]
[1750684311743,5.20201,101520.0,101510.0,0.0634]
[1750684312005,6.21233595,101520.0,101510.0,0.07271968]
[1750684312530,6.38125595,101520.0,101510.0,0.07271968]
[1750684312790,6.38125595,101520.0,101510.0,0.06353881]
[1750684313016,6.38732854,101520.0,101510.0,0.06453881]
[1750684313229,6.41087617,101520.0,101510.0,0.06453881]
[1750684313662,6.11810915,101520.0,101510.0,0.06653881]
[1750684313867,6.08848115,101520.0,101510.0,0.06653881]
[1750684315244,5.59509588,101520.0,101510.0,0.06653881]
[1750684315888,5.98818176,101520.0,101510.0,0.06653881]
[1750684320554,5.59509588,101520.0,101510.0,0.06653881]
[1750684321659,5.98818176,101520.0,101510.0,0.06653881]
[1750684322338,0.73308588,101520.0,101510.0,0.06653881]
[1750684322787,0.34,101520.0,101510.0,0.06653881]
[1750684323238,0.39308588,101530.0,101520.0,0.0636]
[1750684323683,0.73308588,101530.0,101520.0,0.06356]
[1750684324392,0.34,101530.0,101520.0,0.06356]
[1750684324640,0.73308588,101530.0,101520.0,0.06356]
[1750684325560,0.49338527,101530.0,101520.0,0.06356]
[1750684325775,0.88647115,101530.0,101520.0,0.06356]
[1750684325962,5.74852115,101530.0,101520.0,0.06356]
[1750684327154,5.7721229,101530.0,101520.0,0.0315]
[1750684327384,5.9414429,101530.0,101520.0,0.0315]
[1750684327608,6.2814429,101530.0,101520.0,0.0315]
[1750684328037,6.2947774,101530.0,101520.0,0.0315]
[1750684328705,6.2967774,101530.0,101520.0,0.0315]
[1750684328924,6.2997774,101530.0,101520.0,0.0315]
[1750684330917,5.50027114,101530.0,101520.0,0.0617]
[1750684331143,5.89335702,101530.0,101520.0,0.0617]
[1750684331585,5.72403702,101530.0,101520.0,0.0617]
[1750684331797,5.89343702,101530.0,101520.0,0.0617]
[1750684332678,5.72403702,101530.0,101520.0,0.0617]
[1750684333130,0.36864175,101530.0,101520.0,0.0617]
[1750684333354,0.76172763,101530.0,101520.0,0.0617]
[1750684333570,5.62373763,101530.0,101520.0,0.0617]
[1750684333789,5.61873763,101530.0,101520.0,0.0617]
[1750684335095,5.22565175,101530.0,101520.0,0.0617]
[1750684335302,5.61873763,101530.0,101520.0,0.0617]
[1750684336016,5.22565175,101530.0,101520.0,0.0617]
[1750684336235,5.61873763,101530.0,101520.0,0.0617]
[1750684338198,5.22565175,101530.0,101520.0,0.0617]
[1750684338418,5.61873763,101530.0,101520.0,0.0617]
[1750684339992,5.22565175,101530.0,101520.0,0.0627]
[1750684340198,5.61873763,101530.0,101520.0,0.0627]
[1750684342075,0.78617176,101520.0,101510.0,0.06333881]
[1750684342309,1.2500729,101520.0,101510.0,0.06333881]
[1750684342558,1.35037229,101520.0,101510.0,0.06333881]
[1750684343273,6.21238229,101520.0,101510.0,0.06333881]
[1750684343501,6.38170229,101520.0,101510.0,0.00023881]
[1750684343716,6.42838229,101520.0,101510.0,0.00023881]
[1750684343949,6.42838229,101520.0,101510.0,0.03033881]
[1750684344170,6.3280029,101520.0,101510.0,0.06343881]
[1750684344639,6.3280029,101520.0,101510.0,0.06243881]
[1750684345528,6.13339966,101520.0,101510.0,0.06243881]
[1750684346448,5.91747966,101520.0,101510.0,0.06243881]
[1750684346665,5.49507114,101520.0,101510.0,0.06243881]
[1750684346883,6.2812429,101520.0,101510.0,0.06243881]
[1750684348276,6.86169187,101520.0,101510.0,0.00023881]
[1750684348493,5.20201,101500.0,101490.0,0.0318]
[1750684348674,5.86491527,101500.0,101490.0,0.03184629]
[1750684349141,5.94122827,101500.0,101490.0,0.06274629]
[1750684349359,5.89454827,101500.0,101490.0,0.06274629]
[1750684349615,5.79424888,101500.0,101490.0,0.06274629]
[1750684351220,5.401163,101500.0,101490.0,0.06274629]
[1750684351435,5.79412888,101500.0,101490.0,0.06274629]
[1750684353637,6.38781354,101500.0,101490.0,0.00014629]
[1750684353857,6.38781354,101500.0,101490.0,0.03314629]
[1750684354284,6.38781354,101500.0,101490.0,0.00014629]
[1750684355804,5.99472766,101500.0,101490.0,0.00014629]
[1750684356074,5.99472766,101500.0,101490.0,0.03314629]
[1750684356293,5.89442827,101500.0,101490.0,0.03314629]
[1750684356513,5.89442827,101500.0,101490.0,0.06524629]
[1750684356936,5.72502827,101500.0,101490.0,0.06524629]
[1750684357151,5.79388888,101500.0,101490.0,0.06524629]
[1750684358054,5.79384888,101500.0,101490.0,0.06524629]
[1750684358276,0.93183888,101500.0,101490.0,0.06524629]
[1750684358496,0.76271888,101500.0,101490.0,0.06524629]
[1750684359169,0.369633,101500.0,101490.0,0.06524629]
[1750684359391,0.73308588,101500.0,101490.0,0.06524629]
[1750684361132,0.73312588,101500.0,101490.0,0.06524629]
[1750684363565,5.59513588,101500.0,101490.0,0.06524629]
[1750684364421,0.73312588,101500.0,101490.0,0.06524629]
[1750684367388,0.73312588,101500.0,101490.0,0.06724629]
[1750684367612,0.73312588,101500.0,101490.0,0.06924629]
[1750684368071,0.34004,101500.0,101490.0,0.06924629]
[1750684368295,0.73312588,101500.0,101490.0,0.06924629]
[1750684380955,0.73312588,101500.0,101490.0,0.00414629]
[1750684380956,6.26796186,101500.0,101490.0,0.00414629]
[1750684381375,6.29759386,101500.0,101490.0,0.00414629]
[1750684381658,5.90450798,101500.0,101490.0,0.00414629]
[1750684381880,5.92815482,101500.0,101490.0,0.00414629]
[1750684382338,5.74871411,101500.0,101490.0,0.00014629]
[1750684382788,5.91715411,101500.0,101490.0,0.00014629]
[1750684383003,5.91715411,101500.0,101490.0,0.03144629]
[1750684386006,5.81669472,101500.0,101490.0,0.06174629]
[1750684386246,0.34004,101500.0,101490.0,0.06174629]
[1750684386460,0.73312588,101500.0,101490.0,0.06174629]
[1750684387806,0.34004,101500.0,101490.0,0.06374629]
[1750684388043,0.73312588,101500.0,101490.0,0.06374629]
[1750684388688,0.73312588,101500.0,101490.0,0.06574629]
[1750684389112,0.73312588,101500.0,101490.0,0.06174629]
[1750684389534,0.73312588,101500.0,101490.0,0.06574629]
[1750684390381,0.73312588,101500.0,101490.0,0.06874629]
[1750684397551,0.34004,101500.0,101490.0,0.06874629]
[1750684397756,4e-05,101500.0,101490.0,0.57667241]
[1750684397975,4e-05,101500.0,101490.0,1.13751829]
[1750684398447,4e-05,101500.0,101490.0,1.33458204]
[1750684398661,4.86201,101530.0,101520.0,0.0621]
[1750684399490,4.86201,101530.0,101520.0,0.0611]
[1750684399943,0.39308588,101530.0,101520.0,0.0611]
[1750684400569,0.34,101530.0,101520.0,0.0611]
[1750684401007,0.34,101530.0,101520.0,0.17594024]
[1750684401248,0.34,101530.0,101520.0,0.17794024]
[1750684401423,0.34,101530.0,101520.0,0.17594024]
[1750684401859,0.39308588,101540.0,101530.0,0.031]
[1750684402934,0.73308588,101540.0,101530.0,0.031]
[1750684403149,0.73308588,101540.0,101530.0,0.03104629]
[1750684404235,0.73308588,101540.0,101530.0,0.03204629]
[1750684406231,0.34,101540.0,101530.0,0.03204629]
[1750684406438,0.73308588,101540.0,101530.0,0.03204629]
[1750684411084,0.73308588,101540.0,101530.0,0.06514629]
[1750684414662,0.73508588,101540.0,101530.0,0.06514629]
[1750684417207,0.73508588,101540.0,101530.0,0.03214629]
[1750684417438,5.69739527,101540.0,101530.0,0.00104629]
[1750684417654,6.24738054,101540.0,101530.0,0.00104629]
[1750684418296,6.27095936,101540.0,101530.0,0.00104629]
[1750684418510,5.90742934,101540.0,101530.0,4.629e-05]
[1750684419386,6.30351522,101540.0,101530.0,4.629e-05]
[1750684419600,6.31336268,101540.0,101530.0,4.629e-05]
[1750684419832,6.35283333,101540.0,101530.0,4.629e-05]
[1750684420346,6.44830913,101540.0,101530.0,4.629e-05]
[1750684420574,6.44930913,101540.0,101530.0,4.629e-05]
[1750684420806,6.50877212,101540.0,101530.0,4.629e-05]
[1750684421045,6.72539853,101540.0,101530.0,4.629e-05]
[1750684421273,6.76555088,101540.0,101530.0,4.629e-05]
[1750684422908,6.75570313,101540.0,101500.0,0.0616]
[1750684423173,5.59509588,101510.0,101500.0,0.06173894]
[1750684424521,5.59509588,101510.0,101500.0,0.06573894]
[1750684424947,5.59509588,101510.0,101500.0,0.06973894]
[1750684425362,5.59509588,101510.0,101500.0,0.03923894]
[1750684425804,5.59509588,101510.0,101500.0,0.03523894]
[1750684426032,5.62472388,101510.0,101500.0,0.03523894]
[1750684426255,5.72506327,101510.0,101500.0,0.03723894]
[1750684426503,5.82536266,101510.0,101500.0,0.03723894]
[1750684426733,5.82536266,101510.0,101500.0,0.03323894]
[1750684426968,5.99204266,101510.0,101500.0,0.00413894]
[1750684427408,5.99204266,101510.0,101500.0,0.00213894]
[1750684427634,6.26094073,101510.0,101500.0,0.00213894]
[1750684427898,6.41017972,101510.0,101500.0,0.00213894]
[1750684428142,6.41017972,101510.0,101500.0,0.00013894]
[1750684428143,6.52861011,101510.0,101500.0,0.00013894]
[1750684428368,5.74243835,101510.0,101500.0,0.00013894]
[1750684428610,5.53499042,101510.0,101500.0,0.00013894]
[1750684428867,5.59790327,101510.0,101500.0,0.03173894]
[1750684429140,5.59790327,101510.0,101500.0,0.00013894]
[1750684429369,5.61075364,101510.0,101500.0,0.00013894]
[1750684429611,5.25509588,101500.0,101490.0,0.06065894]
[1750684429851,5.25509588,101500.0,101490.0,0.06079795]
[1750684429852,5.59509588,101500.0,101490.0,0.06079795]
[1750684430796,5.59509588,101500.0,101490.0,0.06179795]
[1750684435518,5.69539527,101500.0,101490.0,0.06179795]
[1750684438363,5.72502827,101500.0,101490.0,0.06179795]
[1750684441283,6.11811415,101500.0,101490.0,0.03049795]
[1750684441503,6.11811415,101500.0,101490.0,0.00113901]
[1750684441947,5.72502827,101500.0,101490.0,0.03353901]
[1750684442177,6.11811415,101500.0,101490.0,0.03353901]
[1750684442400,6.12111415,101500.0,101490.0,0.03353901]
[1750684442609,5.72802827,101500.0,101490.0,0.03253901]
[1750684442818,5.72902827,101500.0,101490.0,0.03253901]
[1750684443032,6.12211415,101500.0,101490.0,0.03253901]
[1750684443515,5.72902827,101500.0,101490.0,0.06253901]
[1750684446803,5.72902827,101500.0,101490.0,0.00013901]
[1750684446804,6.12211415,101500.0,101490.0,0.00013901]
[1750684447664,6.09092615,101500.0,101490.0,0.03273901]
[1750684447874,5.69784027,101500.0,101490.0,0.03273901]
[1750684448092,5.69784027,101500.0,101490.0,0.06533901]
[1750684448569,5.30475439,101500.0,101490.0,0.06533901]
[1750684448798,5.69776027,101500.0,101490.0,0.06533901]
[1750684450419,5.30467439,101500.0,101490.0,0.06533901]
[1750684450627,5.69776027,101500.0,101490.0,0.06533901]
[1750684450857,5.53112027,101500.0,101490.0,0.06533901]
[1750684452502,5.55476686,101500.0,101490.0,0.06533901]
[1750684454096,5.06138159,101500.0,101490.0,0.06533901]
[1750684454316,0.73708588,101500.0,101490.0,0.06533901]
[1750684454552,0.73679029,101500.0,101490.0,0.06533901]
[1750684454793,0.39708588,101500.0,101490.0,0.06533901]
[1750684455257,0.39608588,101500.0,101490.0,0.06533901]
[1750684455464,0.39308588,101500.0,101490.0,0.06533901]
[1750684455679,5.05718788,101500.0,101490.0,0.06633901]
[1750684455900,4.664102,101500.0,101490.0,0.06633901]
[1750684456151,5.08085318,101500.0,101490.0,0.06633901]
[1750684456366,4.664102,101500.0,101490.0,0.06633901]
[1750684456577,5.08085808,101500.0,101490.0,0.06633901]
[1750684456777,5.42085808,101500.0,101490.0,0.06633901]
[1750684457003,5.0277722,101500.0,101490.0,0.06633901]
[1750684457223,0.73308588,101500.0,101490.0,0.06633901]
[1750684457664,0.75675698,101500.0,101490.0,0.06633901]
[1750684458089,0.41675698,101500.0,101490.0,0.06633901]
[1750684458307,0.39308588,101500.0,101490.0,0.06633901]
[1750684459653,0.73308588,101500.0,101490.0,0.06633901]
[1750684460544,0.39312588,101510.0,101500.0,0.0611]
[1750684460753,0.73312588,101510.0,101500.0,0.0611]
[1750684461918,0.73412588,101510.0,101500.0,0.0611]
[1750684462137,0.73712588,101510.0,101500.0,0.0611]
[1750684462736,0.73612588,101510.0,101500.0,0.0611]
[1750684463179,0.34304,101510.0,101500.0,0.0621]
[1750684463397,0.73612588,101510.0,101500.0,0.0621]
[1750684463584,0.73312588,101510.0,101500.0,0.0621]
[1750684465183,0.73412588,101510.0,101500.0,0.0621]
[1750684469656,0.34104,101510.0,101500.0,0.0621]
[1750684469876,0.73412588,101510.0,101500.0,0.0621]
[1750684471824,0.39408588,101510.0,101500.0,0.0621]
[1750684473718,0.73408588,101510.0,101500.0,0.0621]
[1750684475968,0.341,101510.0,101500.0,0.0621]
[1750684476203,0.73408588,101510.0,101500.0,0.0621]
[1750684484505,0.73408588,101510.0,101500.0,0.0601]
[1750684486211,0.341,101510.0,101500.0,0.0601]
[1750684486413,0.73408588,101510.0,101500.0,0.0601]
[1750684490575,5.39818788,101510.0,101500.0,0.0298]
[1750684490809,5.39818788,101510.0,101500.0,0.001]
[1750684491086,5.58476256,101510.0,101500.0,0.001]
[1750684491326,5.60326087,101510.0,101500.0,0.001]
[1750684493252,5.57376087,101510.0,101500.0,0.001]
[1750684493773,5.74024087,101510.0,101500.0,0.001]
[1750684493991,5.74022804,101510.0,101500.0,0.001]
[1750684495299,5.72174256,101510.0,101500.0,0.001]
[1750684495505,5.74022224,101510.0,101500.0,0.001]
[1750684495724,5.72174256,101510.0,101500.0,0.001]
[1750684496607,5.68864256,101510.0,101500.0,0.001]
[1750684498612,5.71827356,101510.0,101500.0,0.001]
[1750684499710,5.71827356,101510.0,101500.0,0.0636]
[1750684499711,0.39430629,101510.0,101500.0,0.0636]
[1750684499926,0.341,101510.0,101500.0,0.0636]
[1750684500145,0.73408588,101510.0,101500.0,0.0636]
[1750684502490,5.39818788,101510.0,101500.0,0.0636]
[1750684502706,5.71562983,101510.0,101500.0,0.001]
[1750684503134,5.68857225,101510.0,101500.0,0.001]
[1750684503849,5.68853225,101510.0,101500.0,0.0645]
[1750684504951,5.42183286,101510.0,101500.0,0.0645]
[1750684505174,5.58823286,101510.0,101500.0,0.0645]
[1750684508324,5.58823286,101510.0,101500.0,0.0334]
[1750684508600,5.68853225,101510.0,101500.0,0.0334]
[1750684508850,5.71816225,101510.0,101500.0,0.0334]
[1750684512912,5.45146286,101510.0,101500.0,0.0651]
[1750684513123,6.80252881,101510.0,101500.0,0.0651]
[1750684514592,6.83215581,101510.0,101500.0,0.0651]
[1750684515008,6.80252881,101510.0,101500.0,0.0651]
[1750684515887,6.4598351,101510.0,101500.0,0.0651]
[1750684517461,1.7957331,101510.0,101500.0,0.0651]
[1750684521557,1.79376039,101510.0,101500.0,0.0651]
[1750684526406,1.60742183,101510.0,101500.0,0.0651]
[1750684526861,1.94742183,101510.0,101500.0,0.0651]
[1750684528147,1.75790556,101510.0,101500.0,0.06461784]
[1750684529228,1.36481968,101510.0,101500.0,0.06461784]
[1750684529433,1.75790556,101510.0,101500.0,0.06461784]
[1750684530323,1.36481968,101510.0,101500.0,0.07915869]
[1750684531223,1.02481968,101510.0,101500.0,0.17945808]
[1750684531892,1.02481968,101510.0,101500.0,0.57254396]
[1750684532345,1.02481968,101510.0,101500.0,0.57202612]
[1750684532569,1.02481968,101510.0,101500.0,0.17894024]
[1750684532795,1.02481968,101510.0,101500.0,0.57202612]
[1750684533244,1.02481968,101510.0,101500.0,0.73822612]
[1750684533715,1.02481968,101510.0,101500.0,0.34914024]
[1750684533949,1.02481968,101510.0,101500.0,0.74222612]
[1750684535298,1.02481968,101510.0,101500.0,0.74322612]
[1750684535784,1.02481968,101510.0,101500.0,0.75022612]
[1750684538075,0.81717032,101510.0,101500.0,0.75022612]
[1750684539644,0.81717032,101510.0,101500.0,0.35714024]
[1750684539884,0.81717032,101510.0,101500.0,0.75022612]
[1750684540098,1.2102562,101530.0,101510.0,0.01454085]
[1750684540303,1.2102562,101530.0,101520.0,0.0646]
[1750684542322,1.2102562,101530.0,101520.0,0.0666]
[1750684542965,1.2102562,101530.0,101520.0,0.0686]
[1750684545317,1.60334208,101530.0,101520.0,0.004]
[1750684545548,6.45745506,101530.0,101520.0,0.004]
[1750684545805,6.45926647,101530.0,101520.0,0.004]
[1750684546724,0.34,101520.0,101500.0,0.065]
[1750684546942,0.39308588,101510.0,101500.0,0.04774085]
[1750684547399,0.39308588,101510.0,101500.0,0.08044085]
[1750684548752,0.34,101520.0,101510.0,0.0309]
[1750684549178,0.73308588,101520.0,101510.0,0.0309]
[1750684551804,0.73308588,101520.0,101510.0,0.0634]
[1750684552009,0.73308588,101520.0,101510.0,0.0309]
[1750684552891,0.76608588,101520.0,101500.0,0.0636]
[1750684553103,0.76608588,101520.0,101500.0,0.0311]
[1750684553104,0.39308588,101510.0,101500.0,0.0311]
[1750684554379,0.39308588,101510.0,101490.0,0.03053901]
[1750684554380,0.34,101500.0,101490.0,0.07557986]
[1750684554591,0.34,101500.0,101490.0,0.03063901]
[1750684554592,5.39718788,101500.0,101490.0,0.03063901]
[1750684554855,5.39718788,101500.0,101490.0,0.00013901]
[1750684555308,5.39718788,101500.0,101490.0,0.06443901]
[1750684555503,0.73308588,101500.0,101490.0,0.06443901]
[1750684556067,0.73308588,101500.0,101490.0,0.06643901]
[1750684556281,0.73308588,101500.0,101490.0,0.06843901]
[1750684558673,0.73308588,101500.0,101490.0,0.03663901]
[1750684559318,0.73308588,101500.0,101490.0,0.00413901]
[1750684559733,0.73308588,101500.0,101490.0,0.03433901]
[1750684560368,0.73308588,101500.0,101490.0,0.00413901]
[1750684561493,0.73308588,101500.0,101490.0,0.03553901]
[1750684561706,0.73308588,101500.0,101490.0,0.06553901]
[1750684570390,5.164102,101500.0,101490.0,0.11897925]
[1750684570618,0.73308588,101510.0,101500.0,0.0614]
[1750684572185,0.34,101510.0,101500.0,0.0614]
[1750684572410,0.73308588,101510.0,101500.0,0.0614]
[1750684574766,0.76271088,101510.0,101500.0,0.0614]
[1750684575183,0.73308588,101510.0,101500.0,0.0614]
[1750684578267,0.34,101510.0,101500.0,0.0614]
[1750684578471,0.73308588,101510.0,101500.0,0.0614]
[1750684579112,0.73308588,101510.0,101500.0,0.07594085]
[1750684579318,0.34,101510.0,101500.0,0.17624024]
[1750684579765,0.73308588,101510.0,101500.0,0.17624024]
[1750684580225,0.39308588,101510.0,101500.0,0.17624024]
[1750684582109,0.73308588,101510.0,101500.0,0.17624024]
[1750684583656,0.34,101510.0,101500.0,0.17624024]
[1750684583859,0.73308588,101510.0,101500.0,0.17624024]
[1750684586746,0.34,101510.0,101500.0,0.17624024]
[1750684586951,0.73308588,101510.0,101500.0,0.17624024]
[1750684588174,0.73308588,101510.0,101500.0,0.17824024]
[1750684590811,0.34,101510.0,101500.0,0.18024024]
[1750684591014,0.73308588,101510.0,101500.0,0.18024024]
[1750684591421,0.029625,101520.0,101510.0,0.0629]
[1750684591422,4.664102,101520.0,101510.0,0.0629]
[1750684591619,0.39308588,101520.0,101510.0,0.0629]
[1750684592058,0.73308588,101520.0,101510.0,0.0629]
[1750684606112,1.12617176,101520.0,101510.0,0.0629]
[1750684608302,1.12743054,101520.0,101510.0,0.0629]
[1750684612412,1.12743054,101520.0,101510.0,0.0315]
[1750684613173,1.12743054,101520.0,101510.0,0.0629]
[1750684615946,0.34,101520.0,101510.0,0.0629]
[1750684616169,0.73371527,101520.0,101510.0,0.17774024]
[1750684616587,1.21088559,101530.0,101520.0,0.064]
[1750684616788,1.55088559,101530.0,101520.0,0.064]
[1750684618362,1.55073429,101530.0,101520.0,0.064]
[1750684619235,1.55073429,101530.0,101520.0,0.17884024]
[1750684622002,1.15717032,101530.0,101520.0,0.17884024]
[1750684623347,1.15721032,101530.0,101520.0,0.17884024]
[1750684624416,1.15721032,101530.0,101520.0,0.18084024]
[1750684624621,1.15721032,101530.0,101520.0,0.18284024]
[1750684626471,1.15721032,101530.0,101520.0,0.57640421]
[1750684626874,0.81721032,101530.0,101520.0,0.57640421]
[1750684627401,1.21077429,101530.0,101520.0,0.18284024]
[1750684627622,0.81721032,101530.0,101520.0,0.18284024]
[1750684630393,0.81721032,101530.0,101520.0,0.34804024]
[1750684635784,0.81721032,101530.0,101520.0,0.18284024]
[1750684635994,0.81721032,101530.0,101520.0,0.34800024]
[1750684641701,1.15721032,101530.0,101520.0,0.16829939]
[1750684641900,1.55077429,101530.0,101520.0,0.33337939]
[1750684642140,1.55077429,101530.0,101520.0,0.34792024]
[1750684642798,1.15721032,101530.0,101520.0,0.34792024]
[1750684642991,1.55077429,101530.0,101520.0,0.34792024]
[1750684644295,1.55077429,101530.0,101520.0,0.18284024]
[1750684644510,1.55077429,101530.0,101520.0,0.31508024]